fUST/lending_fUST_20260626
["ID","MTS","AMOUNT","RATE_DAILY","PERIOD"]
[426455255,1782411048000,-516.86,0.00049315,120]
[426455258,1782411048000,-500.0,0.00049315,120]
[426455254,1782411048000,-500.0,0.00049315,120]
[426455249,1782411048000,-500.0,0.00049315,120]
[426455259,1782411048000,-500.0,0.00049315,120]
[426455251,1782411048000,-506.97,0.00049315,120]
[426455253,1782411048000,-500.0,0.00049315,120]
[426455250,1782411048000,-563.91,0.00049315,120]
[426455248,1782411048000,-530.83993663,0.00049315,120]
[426455246,1782411048000,-500.0,0.00049315,120]
[426455252,1782411048000,-500.0,0.00049315,120]
[426455322,1782411049000,-236.74208141,0.00049315,120]
[426455329,1782411049000,-500.0,0.00049315,120]
[426455326,1782411049000,-500.0,0.00049315,120]
[426455320,1782411049000,-500.0,0.00049315,120]
[426455323,1782411049000,-263.25791859,0.00049315,120]
[426455319,1782411049000,-500.0,0.00049315,120]
[426455325,1782411049000,-500.0,0.00049315,120]
[426455328,1782411049000,-500.0,0.00049315,120]
[426455327,1782411049000,-501.43975713,0.00049315,120]
[426455321,1782411049000,-501.79568862,0.00049315,120]
[426455333,1782411049000,-500.0,0.00049315,120]
[426455324,1782411049000,-500.0,0.00049315,120]
[426455331,1782411049000,-503.21655311,0.00049315,120]
[426455335,1782411049000,-500.0,0.00049315,120]
[426455339,1782411049000,-71.19261436,0.00049315,120]
[426455338,1782411049000,-509.04098118,0.00049315,120]
[426455334,1782411049000,-501.7725553,0.00049315,120]
[426455332,1782411049000,-500.0,0.00049315,11]
[426455330,1782411049000,-502.09845296,0.00049315,120]
[426455337,1782411049000,-500.0,0.00049315,120]
[426455336,1782411049000,-503.66333492,0.00049315,120]
[426455341,1782411049000,-501.09642152,0.00049315,120]
[426455342,1782411049000,-500.68916355,0.00049315,120]
[426455351,1782411049000,-500.0,0.00049315,120]
[426455353,1782411049000,-501.11878251,0.00049315,120]
[426455343,1782411049000,-501.41020182,0.00049315,120]
[426455340,1782411049000,-428.80738564,0.00049315,120]
[426455316,1782411049000,-500.0,0.00049315,120]
[426455354,1782411049000,-500.0,0.00049315,120]
[426455315,1782411049000,-500.0,0.00049315,120]
[426455294,1782411049000,-500.0,0.00049315,120]
[426455291,1782411049000,-506.40262795,0.00049315,120]
[426455290,1782411049000,-500.0,0.00049315,120]
[426455289,1782411049000,-500.0,0.00049315,120]
[426455292,1782411049000,-336.49175402,0.00049315,120]
[426455293,1782411049000,-501.35243243,0.00049315,120]
[426455295,1782411049000,-500.95279718,0.00049315,120]
[426455298,1782411049000,-500.0,0.00049315,120]
[426455304,1782411049000,-501.00402744,0.00049315,120]
[426455299,1782411049000,-498.84707758,0.00049315,120]
[426455301,1782411049000,-501.08088335,0.00049315,120]
[426455306,1782411049000,-539.05649474,0.00049315,120]
[426455314,1782411049000,-500.0,0.00049315,120]
[426455300,1782411049000,-500.0,0.00049315,120]
[426455302,1782411049000,-504.16832461,0.00049315,120]
[426455307,1782411049000,-500.0,0.00049315,120]
[426455303,1782411049000,-501.35499485,0.00049315,120]
[426455305,1782411049000,-549.54323389,0.00049315,120]
[426455309,1782411049000,-514.10830509,0.00049315,120]
[426455308,1782411049000,-500.0,0.00049315,120]
[426455311,1782411049000,-504.22129203,0.00049315,120]
[426455312,1782411049000,-500.0,0.00049315,120]
[426455318,1782411049000,-500.0,0.00049315,120]
[426455310,1782411049000,-500.0,0.00049315,120]
[426455313,1782411049000,-500.0,0.00049315,120]
[426455317,1782411049000,-501.33445023,0.00049315,120]
[426455296,1782411049000,-500.0,0.00049315,120]
[426455352,1782411049000,-501.2911978,0.00049315,120]
[426455297,1782411049000,-500.65812369,0.00049315,120]
[426455349,1782411049000,-503.25194257,0.00049315,120]
[426455389,1782411049000,-504.24604907,0.00049315,120]
[426455381,1782411049000,-500.0,0.00049315,120]
[426455382,1782411049000,-501.7525981,0.00049315,120]
[426455385,1782411049000,-500.59809608,0.00049315,120]
[426455386,1782411049000,-500.0,0.00049315,120]
[426455387,1782411049000,-510.893457,0.00049315,120]
[426455384,1782411049000,-506.33457675,0.00049315,120]
[426455388,1782411049000,-500.0,0.00049315,120]
[426455383,1782411049000,-500.0,0.00049315,120]
[426455396,1782411049000,-501.5583142,0.00049315,120]
[426455391,1782411049000,-503.41712823,0.00049315,120]
[426455398,1782411049000,-500.0,0.00049315,120]
[426455390,1782411049000,-500.0,0.00049315,120]
[426455397,1782411049000,-502.72008505,0.00049315,120]
[426455400,1782411049000,-500.0,0.00049315,120]
[426455392,1782411049000,-500.0,0.00049315,120]
[426455399,1782411049000,-500.0,0.00049315,120]
[426455404,1782411049000,-513.70467778,0.00049315,120]
[426455393,1782411049000,-500.88376722,0.00049315,120]
[426455401,1782411049000,-505.77755221,0.00049315,120]
[426455395,1782411049000,-223.96297231,0.00049315,120]
[426455394,1782411049000,-460.4,0.00049315,120]
[426455402,1782411049000,-506.33541112,0.00049315,120]
[426455403,1782411049000,-500.0,0.00049315,120]
[426455406,1782411049000,-500.0,0.00049315,120]
[426455405,1782411049000,-500.0,0.00049315,120]
[426455344,1782411049000,-500.0,0.00049315,120]
[426455380,1782411049000,-500.0,0.00049315,120]
[426455378,1782411049000,-516.24531445,0.00049315,120]
[426455407,1782411049000,-509.53548218,0.00049315,120]
[426455373,1782411049000,-387.73392595,0.00049315,120]
[426455347,1782411049000,-301.68870498,0.00049315,120]
[426455348,1782411049000,-500.55566593,0.00049315,120]
[426455345,1782411049000,-501.15948717,0.00049315,120]
[426455346,1782411049000,-523.60227038,0.00049315,120]
[426455350,1782411049000,-500.0,0.00049315,120]
[426455355,1782411049000,-502.81904601,0.00049315,120]
[426455357,1782411049000,-500.0,0.00049315,120]
[426455375,1782411049000,-500.0,0.00049315,120]
[426455356,1782411049000,-501.28642582,0.00049315,120]
[426455361,1782411049000,-516.194878,0.00049315,120]
[426455364,1782411049000,-500.0,0.00049315,120]
[426455358,1782411049000,-502.24331747,0.00049315,120]
[426455360,1782411049000,-500.66764081,0.00049315,120]
[426455359,1782411049000,-500.92731747,0.00049315,120]
[426455362,1782411049000,-500.46786533,0.00049315,120]
[426455372,1782411049000,-500.0,0.00049315,120]
[426455367,1782411049000,-500.0,0.00049315,120]
[426455370,1782411049000,-492.38738266,0.00049315,120]
[426455377,1782411049000,-500.0,0.00049315,120]
[426455374,1782411049000,-500.0,0.00049315,120]
[426455368,1782411049000,-500.0,0.00049315,120]
[426455376,1782411049000,-500.0,0.00049315,120]
[426455379,1782411049000,-500.0,0.00049315,120]
[426455369,1782411049000,-497.70819218,0.00049315,120]
[426455365,1782411049000,-500.0,0.00049315,120]
[426455363,1782411049000,-504.19217426,0.00049315,120]
[426455366,1782411049000,-500.0,0.00049315,120]
[426455371,1782411049000,-500.97663846,0.00049315,120]
[426455444,1782411050000,-500.0,0.00049315,120]
[426455450,1782411050000,-599.0175644,0.00049315,120]
[426455447,1782411050000,-500.0,0.00049315,120]
[426455446,1782411050000,-500.0,0.00049315,120]
[426455440,1782411050000,-534.27101981,0.00049315,120]
[426455438,1782411050000,-500.0,0.00049315,90]
[426455443,1782411050000,-500.0,0.00049315,120]
[426455445,1782411050000,-500.0,0.00049315,120]
[426455441,1782411050000,-500.0,0.00049315,120]
[426455439,1782411050000,-500.0,0.00049315,120]
[426455442,1782411050000,-500.0,0.00049315,120]
[426455449,1782411050000,-500.0,0.00049315,120]
[426455457,1782411050000,-500.0,0.00049315,120]
[426455460,1782411050000,-500.0,0.00049315,120]
[426455459,1782411050000,-500.0,0.00049315,120]
[426455462,1782411050000,-300.0,0.00049315,120]
[426455463,1782411050000,-500.0,0.00049315,120]
[426455461,1782411050000,-500.0,0.00049315,120]
[426455451,1782411050000,-500.0,0.00049315,120]
[426455454,1782411050000,-500.0,0.00049315,2]
[426455452,1782411050000,-500.0,0.00049315,2]
[426455453,1782411050000,-500.0,0.00049315,120]
[426455456,1782411050000,-500.0,0.00049315,120]
[426455455,1782411050000,-500.0,0.00049315,120]
[426455437,1782411050000,-500.0,0.00049315,120]
[426455448,1782411050000,-500.0,0.00049315,120]
[426455435,1782411050000,-500.0,0.00049315,120]
[426455423,1782411050000,-500.0,0.00049315,120]
[426455436,1782411050000,-1234.9134,0.00049315,120]
[426455458,1782411050000,-500.0,0.00049315,120]
[426455409,1782411050000,-500.0,0.00049315,120]
[426455411,1782411050000,-500.0,0.00049315,11]
[426455414,1782411050000,-500.0,0.00049315,120]
[426455408,1782411050000,-500.0,0.00049315,120]
[426455413,1782411050000,-500.0,0.00049315,120]
[426455412,1782411050000,-500.0,0.00049315,120]
[426455410,1782411050000,-278.8,0.00049315,120]
[426455415,1782411050000,-400.9824356,0.00049315,120]
[426455416,1782411050000,-197.26958726,0.00049315,120]
[426455422,1782411050000,-500.0,0.00049315,120]
[426455424,1782411050000,-500.0,0.00049315,11]
[426455428,1782411050000,-500.0,0.00049315,120]
[426455417,1782411050000,-500.0,0.00049315,120]
[426455421,1782411050000,-500.0,0.00049315,120]
[426455419,1782411050000,-430.35986315,0.00049315,120]
[426455418,1782411050000,-500.0,0.00049315,120]
[426455425,1782411050000,-500.0,0.00049315,120]
[426455426,1782411050000,-500.0,0.00049315,120]
[426455429,1782411050000,-500.0,0.00049315,120]
[426455431,1782411050000,-500.0,0.00049315,6]
[426455430,1782411050000,-500.0,0.00049315,120]
[426455433,1782411050000,-500.0,0.00049315,120]
[426455427,1782411050000,-500.0,0.00049315,90]
[426455432,1782411050000,-500.0,0.00049315,120]
[426455434,1782411050000,-500.0,0.00049315,120]
[426455420,1782411050000,-500.0,0.00049315,120]
[426455464,1782411050000,-500.0,0.00049315,120]
[426455481,1782411050000,-500.0,0.00049315,120]
[426455469,1782411050000,-500.0,0.00049315,120]
[426455496,1782411050000,-500.0,0.00049315,120]
[426455497,1782411050000,-500.0,0.00049315,120]
[426455499,1782411050000,-500.0,0.00049315,120]
[426455506,1782411050000,-500.0,0.00049315,120]
[426455503,1782411050000,-500.0,0.00049315,120]
[426455500,1782411050000,-500.0,0.00049315,120]
[426455507,1782411050000,-500.0,0.00049315,120]
[426455505,1782411050000,-500.0,0.00049315,120]
[426455502,1782411050000,-203.4484675,0.00049315,120]
[426455504,1782411050000,-500.0,0.00049315,120]
[426455465,1782411050000,-500.0,0.00049315,120]
[426455509,1782411050000,-500.0,0.00049315,120]
[426455498,1782411050000,-500.0,0.00049315,120]
[426455508,1782411050000,-500.0,0.00049315,2]
[426455519,1782411050000,-500.0,0.00049315,120]
[426455520,1782411050000,-500.0,0.00049315,120]
[426455511,1782411050000,-500.0,0.00049315,120]
[426455516,1782411050000,-500.0,0.00049315,120]
[426455517,1782411050000,-500.0,0.00049315,120]
[426455513,1782411050000,-500.0,0.00049315,120]
[426455514,1782411050000,-500.0,0.00049315,120]
[426455518,1782411050000,-500.0,0.00049315,120]
[426455512,1782411050000,-500.0,0.00049315,120]
[426455515,1782411050000,-500.0,0.00049315,120]
[426455521,1782411050000,-619.23236792,0.00049315,120]
[426455522,1782411050000,-151.12336692,0.00049315,120]
[426455510,1782411050000,-500.0,0.00049315,2]
[426455490,1782411050000,-500.0,0.00049315,120]
[426455501,1782411050000,-500.0,0.00049315,120]
[426455493,1782411050000,-500.0,0.00049315,120]
[426455492,1782411050000,-500.0,0.00049315,120]
[426455468,1782411050000,-500.0,0.00049315,120]
[426455466,1782411050000,-500.0,0.00049315,120]
[426455470,1782411050000,-500.0,0.00049315,120]
[426455471,1782411050000,-500.0,0.00049315,120]
[426455476,1782411050000,-500.0,0.00049315,60]
[426455475,1782411050000,-500.0,0.00049315,120]
[426455473,1782411050000,-500.0,0.00049315,120]
[426455480,1782411050000,-500.0,0.00049315,120]
[426455478,1782411050000,-500.0,0.00049315,120]
[426455474,1782411050000,-500.0,0.00049315,120]
[426455477,1782411050000,-500.0,0.00049315,120]
[426455482,1782411050000,-500.0,0.00049315,11]
[426455467,1782411050000,-530.66536063,0.00049315,120]
[426455488,1782411050000,-500.0,0.00049315,120]
[426455472,1782411050000,-500.0,0.00049315,120]
[426455494,1782411050000,-500.0,0.00049315,120]
[426455495,1782411050000,-229.56525872,0.00049315,120]
[426455484,1782411050000,-500.0,0.00049315,120]
[426455483,1782411050000,-500.0,0.00049315,120]
[426455485,1782411050000,-3084.5865,0.00049315,120]
[426455486,1782411050000,-500.0,0.00049315,120]
[426455491,1782411050000,-221.65,0.00049315,120]
[426455487,1782411050000,-500.0,0.00049315,120]
[426455489,1782411050000,-500.0,0.00049315,90]
[426455479,1782411050000,-500.0,0.00049315,120]
[426455539,1782411051000,-500.0,0.00049315,30]
[426455540,1782411051000,-500.0,0.00049315,120]
[426455542,1782411051000,-500.0,0.00049315,120]
[426455541,1782411051000,-500.0,0.00049315,120]
[426455548,1782411051000,-381.93400441,0.00049315,120]
[426455544,1782411051000,-500.0,0.00049315,120]
[426455551,1782411051000,-348.11283514,0.00049315,120]
[426455546,1782411051000,-500.0,0.00049315,120]
[426455552,1782411051000,-500.0,0.00049315,120]
[426455535,1782411051000,-500.0,0.00049315,120]
[426455538,1782411051000,-500.0,0.00049315,120]
[426455537,1782411051000,-500.0,0.00049315,120]
[426455530,1782411051000,-500.0,0.00049315,120]
[426455536,1782411051000,-500.0,0.00049315,120]
[426455533,1782411051000,-500.0,0.00049315,120]
[426455534,1782411051000,-500.0,0.00049315,120]
[426455531,1782411051000,-500.0,0.00049315,120]
[426455529,1782411051000,-500.0,0.00049315,120]
[426455527,1782411051000,-500.0,0.00049315,120]
[426455524,1782411051000,-500.0,0.00049315,120]
[426455528,1782411051000,-500.0,0.00049315,120]
[426455523,1782411051000,-348.87663308,0.00049315,120]
[426455525,1782411051000,-500.0,0.00049315,120]
[426455526,1782411051000,-500.0,0.00049315,120]
[426455532,1782411051000,-500.0,0.00049315,120]
[426455553,1782411051000,-215.41,0.00049315,120]
[426455563,1782411051000,-396.30627872,0.00049315,120]
[426455545,1782411051000,-500.0,0.00049315,120]
[426455574,1782411051000,-434.06505022,0.00049315,120]
[426455571,1782411051000,-275.71879753,0.00049315,120]
[426455575,1782411051000,-163.55515577,0.00049315,120]
[426455570,1782411051000,-500.0,0.00049315,2]
[426455568,1782411051000,-229.27570212,0.00049315,120]
[426455566,1782411051000,-346.60403021,0.00049315,120]
[426455569,1782411051000,-363.04869327,0.00049315,120]
[426455567,1782411051000,-166.15520587,0.00049315,120]
[426455564,1782411051000,-631.83937522,0.00049315,120]
[426455560,1782411051000,-500.0,0.00049315,120]
[426455572,1782411051000,-258.21888148,0.00049315,120]
[426455565,1782411051000,-356.66399885,0.00049315,120]
[426455558,1782411051000,-418.69023472,0.00049315,120]
[426455556,1782411051000,-258.53247867,0.00049315,120]
[426455561,1782411051000,-467.27604141,0.00049315,120]
[426455559,1782411051000,-379.73595436,0.00049315,120]
[426455562,1782411051000,-430.03387415,0.00049315,120]
[426455557,1782411051000,-452.29,0.00049315,120]
[426455555,1782411051000,-276.50035664,0.00049315,120]
[426455549,1782411051000,-364.76033531,0.00049315,120]
[426455547,1782411051000,-500.0,0.00049315,120]
[426455543,1782411051000,-563.48,0.00049315,120]
[426455554,1782411051000,-396.37466363,0.00049315,120]
[426455573,1782411051000,-147.58014431,0.00049315,120]
[426455550,1782411051000,-635.319544,0.00049315,120]
[426455580,1782411344000,417.15472785,0.00027482,30]
[426455581,1782411461000,348.0,0.00030136,120]
[426455583,1782411607000,500.0,0.0003,120]
[426455585,1782411694000,700.0,0.0003,120]
[426456060,1782412188000,5000.0,0.000101,13]
[426456064,1782412196000,2949.22613248,0.000101,13]
[426456068,1782412211000,5000.0,0.000101,13]
[426456105,1782412232000,-456.26,0.000311,10]
[426456109,1782412232000,-1000.0,0.0003147,2]
[426456095,1782412232000,-168.35,0.00030137,30]
[426456101,1782412232000,-168.35,0.00030137,30]
[426456097,1782412232000,-168.35,0.00030137,30]
[426456099,1782412232000,-168.35,0.00030137,30]
[426456094,1782412232000,-168.35,0.00030137,30]
[426456093,1782412232000,-200.0,0.00029266,2]
[426456091,1782412232000,-482.40525529,0.00027532,2]
[426456092,1782412232000,-154.0732,0.00028809,2]
[426456087,1782412232000,-426.56539742,0.00021026,2]
[426456088,1782412232000,-1465.14,0.000244,2]
[426456089,1782412232000,-1465.14,0.000244,2]
[426456086,1782412232000,-256.94175,0.00014079,2]
[426456085,1782412232000,-654.6620378,0.0001,2]
[426456107,1782412232000,-1005.69,0.000311,2]
[426456090,1782412232000,-1736.642019,0.00026,2]
[426456103,1782412232000,-380.0,0.00030315,2]
[426456120,1782412232000,-170.46893149,0.00032373,2]
[426456116,1782412232000,-187.7252884,0.00032373,2]
[426456143,1782412232000,-3389.31205976,0.00033159,2]
[426456140,1782412232000,-203.79636672,0.00032421,2]
[426456134,1782412232000,-166.7746849,0.00032421,2]
[426456138,1782412232000,-196.13441546,0.00032421,2]
[426456128,1782412232000,-150.24323109,0.00032421,2]
[426456132,1782412232000,-224.8484578,0.00032421,2]
[426456127,1782412232000,-185.70724431,0.00032421,2]
[426456130,1782412232000,-169.3104315,0.00032421,2]
[426456136,1782412232000,-200.98525215,0.00032421,2]
[426456121,1782412232000,-197.85658724,0.00032373,2]
[426456123,1782412232000,-177.35719558,0.00032373,2]
[426456125,1782412232000,-185.12227561,0.00032373,2]
[426456142,1782412232000,-1004.97122173,0.00032752,2]
[426456112,1782412232000,-183.566209,0.00032021,2]
[426456115,1782412232000,-157.46899051,0.00032373,2]
[426456118,1782412232000,-195.8566928,0.00032373,2]
[426456111,1782412232000,-500.0,0.00032,120]
[426456352,1782412234000,-2131.70261787,9.9e-05,2]
[426456457,1782412235000,-194.68545388,9.9e-05,2]
[426456469,1782412236000,-151.56885917,9.9e-05,2]
[426456470,1782412236000,-475.09999377,9.9e-05,2]
[426456471,1782412237000,-151.91244951,9.9e-05,2]
[426456505,1782412238000,-500.0,0.00033259,7]
[426456506,1782412238000,-500.0,0.00033259,7]
[426456507,1782412238000,-500.0,0.00033259,7]
[426456495,1782412238000,-500.0,0.00033259,7]
[426456492,1782412238000,-500.0,0.00033259,7]
[426456491,1782412238000,-500.0,0.00033259,7]
[426456494,1782412238000,-500.0,0.00033259,7]
[426456493,1782412238000,-500.0,0.00033259,7]
[426456490,1782412238000,-500.0,0.00033259,7]
[426456488,1782412238000,-500.0,0.00033259,7]
[426456486,1782412238000,-500.0,0.00033259,7]
[426456489,1782412238000,-500.0,0.00033259,7]
[426456487,1782412238000,-500.0,0.00033259,7]
[426456485,1782412238000,-500.0,0.00033259,7]
[426456483,1782412238000,-2050.97086112,0.00033159,2]
[426456481,1782412238000,-1133.60771158,9.9e-05,2]
[426456482,1782412238000,-3838.07384673,0.00033159,2]
[426456484,1782412238000,-517.74712121,0.00033259,7]
[426456496,1782412238000,-500.0,0.00033259,7]
[426456508,1782412238000,-500.0,0.00033259,7]
[426456502,1782412238000,-417.2493328,0.00033259,7]
[426456497,1782412238000,-500.0,0.00033259,7]
[426456518,1782412238000,-500.0,0.00033259,7]
[426456511,1782412238000,-500.0,0.00033259,7]
[426456510,1782412238000,-500.0,0.00033259,7]
[426456516,1782412238000,-500.0,0.00033259,7]
[426456519,1782412238000,-500.0,0.00033259,7]
[426456512,1782412238000,-500.0,0.00033259,7]
[426456513,1782412238000,-500.0,0.00033259,7]
[426456509,1782412238000,-500.0,0.00033259,7]
[426456515,1782412238000,-500.0,0.00033259,7]
[426456514,1782412238000,-500.0,0.00033259,7]
[426456501,1782412238000,-168.48212739,0.00033259,7]
[426456498,1782412238000,-500.0,0.00033259,7]
[426456503,1782412238000,-500.0,0.00033259,7]
[426456499,1782412238000,-500.0,0.00033259,7]
[426456500,1782412238000,-500.0,0.00033259,7]
[426456517,1782412238000,-500.0,0.00033259,7]
[426456504,1782412238000,-500.0,0.00033259,7]
[426456560,1782412239000,-472.40697154,0.00033919,2]
[426456559,1782412239000,-150.0,0.00033884,2]
[426456561,1782412239000,-563.1758652,0.00033919,2]
[426456556,1782412239000,-1010.11146102,0.0003383,2]
[426456549,1782412239000,-333.5493698,0.0003335,2]
[426456555,1782412239000,-407.59273343,0.0003335,2]
[426456548,1782412239000,-201.76931713,0.0003335,2]
[426456553,1782412239000,-157.76860355,0.0003335,2]
[426456554,1782412239000,-212.45271016,0.0003335,2]
[426456558,1782412239000,-750.0,0.00033884,2]
[426456557,1782412239000,-750.0,0.00033884,2]
[426456562,1782412239000,-587.5700784,0.00033919,2]
[426456572,1782412239000,-217.98528305,0.0003397,2]
[426456564,1782412239000,-593.56976171,0.00033919,2]
[426456566,1782412239000,-555.36682682,0.00033919,2]
[426456565,1782412239000,-532.07158675,0.00033919,2]
[426456567,1782412239000,-189.41018865,0.00033968,2]
[426456570,1782412239000,-207.74880473,0.0003397,2]
[426456568,1782412239000,-450.72969326,0.0003397,2]
[426456573,1782412239000,-507.93129449,0.0003397,2]
[426456551,1782412239000,-392.26883092,0.0003335,2]
[426456569,1782412239000,-557.12173294,0.0003397,2]
[426456571,1782412239000,-155.37438652,0.0003397,2]
[426456574,1782412239000,-674.54537339,0.0003397,2]
[426456575,1782412239000,-403.53863426,0.0003397,2]
[426456577,1782412239000,-602.95575645,0.0003397,2]
[426456563,1782412239000,-511.40679447,0.00033919,2]
[426456547,1782412239000,-449.69691559,0.0003335,2]
[426456542,1782412239000,-370.24455121,0.00033301,2]
[426456545,1782412239000,-371.41448863,0.0003335,2]
[426456576,1782412239000,-500.3240547,0.0003397,2]
[426456520,1782412239000,-500.0,0.00033259,7]
[426456521,1782412239000,-500.0,0.00033259,7]
[426456523,1782412239000,-500.0,0.00033259,7]
[426456534,1782412239000,-650.0,0.00033259,7]
[426456522,1782412239000,-500.0,0.00033259,7]
[426456526,1782412239000,-500.0,0.00033259,7]
[426456533,1782412239000,-500.0,0.00033259,7]
[426456525,1782412239000,-500.0,0.00033259,7]
[426456524,1782412239000,-500.0,0.00033259,7]
[426456527,1782412239000,-500.0,0.00033259,7]
[426456532,1782412239000,-500.0,0.00033259,7]
[426456552,1782412239000,-249.62907579,0.0003335,2]
[426456529,1782412239000,-500.0,0.00033259,7]
[426456531,1782412239000,-500.0,0.00033259,7]
[426456530,1782412239000,-500.0,0.00033259,7]
[426456536,1782412239000,-314.93798103,0.00033301,2]
[426456537,1782412239000,-375.4505768,0.00033301,2]
[426456535,1782412239000,-7858.88,0.0003326,30]
[426456539,1782412239000,-340.93786298,0.00033301,2]
[426456538,1782412239000,-391.7133856,0.00033301,2]
[426456540,1782412239000,-395.71317447,0.00033301,2]
[426456541,1782412239000,-354.71439116,0.00033301,2]
[426456543,1782412239000,-208.403,0.0003335,35]
[426456546,1782412239000,-338.620863,0.0003335,2]
[426456544,1782412239000,-300.48646218,0.0003335,2]
[426456528,1782412239000,-500.0,0.00033259,7]
[426456579,1782412239000,-189.56968353,0.0003397,2]
[426456550,1782412239000,-401.9705043,0.0003335,2]
[426456589,1782412239000,-500.0,0.00034,120]
[426456607,1782412239000,-500.0,0.0003433,7]
[426456606,1782412239000,-500.0,0.0003433,7]
[426456613,1782412239000,-500.0,0.0003433,7]
[426456609,1782412239000,-500.0,0.0003433,7]
[426456615,1782412239000,-500.0,0.0003433,7]
[426456621,1782412239000,-783.4267712,0.00034331,2]
[426456619,1782412239000,-750.90115359,0.00034331,2]
[426456625,1782412239000,-740.48910243,0.00034331,2]
[426456616,1782412239000,-500.0,0.0003433,7]
[426456626,1782412239000,-378.82037729,0.00034381,2]
[426456617,1782412239000,-283.89398439,0.0003433,7]
[426456618,1782412239000,-629.87596205,0.00034331,2]
[426456610,1782412239000,-500.0,0.0003433,7]
[426456627,1782412239000,-351.01170217,0.00034381,2]
[426456620,1782412239000,-167.75327458,0.00034331,2]
[426456623,1782412239000,-791.42634894,0.00034331,2]
[426456629,1782412239000,-742.82897725,0.00034383,2]
[426456628,1782412239000,-600.97292435,0.00034383,2]
[426456632,1782412239000,-310.74877305,0.00034383,2]
[426456633,1782412239000,-435.97056609,0.00034383,2]
[426456630,1782412239000,-162.48081055,0.00034383,2]
[426456631,1782412239000,-448.36333614,0.00034383,2]
[426456635,1782412239000,-380.41009888,0.00034383,2]
[426456634,1782412239000,-677.24172599,0.00034383,2]
[426456636,1782412239000,-605.3079514,0.00034383,2]
[426456587,1782412239000,-291.5849876,0.0003397,2]
[426456622,1782412239000,-681.87572596,0.00034331,2]
[426456611,1782412239000,-500.0,0.0003433,7]
[426456624,1782412239000,-709.42878233,0.00034331,2]
[426456612,1782412239000,-500.0,0.0003433,7]
[426456608,1782412239000,-500.0,0.0003433,7]
[426456588,1782412239000,-611.38910015,0.0003397,2]
[426456580,1782412239000,-190.12552154,0.0003397,2]
[426456581,1782412239000,-499.25815158,0.0003397,2]
[426456578,1782412239000,-588.40324637,0.0003397,2]
[426456584,1782412239000,-315.53720711,0.0003397,2]
[426456583,1782412239000,-202.88812981,0.0003397,2]
[426456586,1782412239000,-424.90542031,0.0003397,2]
[426456585,1782412239000,-254.63150999,0.0003397,2]
[426456590,1782412239000,-1000.0,0.00034181,2]
[426456600,1782412239000,-500.0,0.0003433,7]
[426456601,1782412239000,-500.0,0.0003433,7]
[426456596,1782412239000,-405.86705502,0.00034296,2]
[426456582,1782412239000,-274.62504442,0.0003397,2]
[426456594,1782412239000,-2050.04909197,0.00034296,2]
[426456637,1782412239000,-169.77168308,0.00034383,2]
[426456599,1782412239000,-500.0,0.0003433,7]
[426456605,1782412239000,-500.0,0.0003433,7]
[426456603,1782412239000,-500.0,0.0003433,7]
[426456614,1782412239000,-500.0,0.0003433,7]
[426456592,1782412239000,-738.01767311,0.00034296,2]
[426456604,1782412239000,-500.0,0.0003433,7]
[426456595,1782412239000,-355.13367314,0.00034296,2]
[426456593,1782412239000,-1312.03141886,0.00034296,2]